fUSD/lending_fUSD_20250124
["ID","MTS","AMOUNT","RATE_DAILY","PERIOD"]
[350241780,1737731442895,-500.0,0.00018815,2]
[350241781,1737731442905,-289.981981,0.00018815,2]
[350241782,1737731442915,-500.0,0.00018815,2]
[350241783,1737731442925,-289.981981,0.00018815,2]
[350241784,1737731442935,-500.0,0.00018815,2]
[350241785,1737731442945,-676.97,0.00018815,2]
[350241786,1737731442955,-500.0,0.00018815,2]
[350241787,1737731442965,-169.1432173,0.00018815,2]
[350241788,1737731442974,-500.0,0.00018815,2]
[350241789,1737731442984,-151.0,0.00018815,2]
[350241790,1737731442994,-500.0,0.00018815,2]
[350241791,1737731443004,-153.971182,0.00018815,2]
[350241792,1737731443013,-500.0,0.00018815,2]
[350241793,1737731443023,-7793.625528,0.00018815,2]
[350241794,1737731443032,-621.1,0.00018815,2]
[350241795,1737731443042,-7793.625528,0.00018815,2]
[350241796,1737731443057,-500.0,0.00018815,2]
[350241797,1737731443067,-725.8,0.00018815,2]
[350241798,1737731443076,-585.52,0.00018815,2]
[350241799,1737731443086,-183.194413,0.00018815,2]
[350241800,1737731443096,-183.194413,0.00018815,2]
[350241801,1737731443106,-500.0,0.00018815,2]
[350241803,1737731443116,-500.0,0.00018815,2]
[350241804,1737731443125,-260.340281,0.00018815,2]
[350241805,1737731443135,-500.0,0.00018815,2]
[350241806,1737731443145,-500.0,0.00018815,2]
[350241807,1737731443155,-500.0,0.00018815,2]
[350241808,1737731443165,-151.0,0.00018815,2]
[350241809,1737731443174,-896.05,0.00018815,2]
[350241810,1737731443184,-151.0,0.00018815,2]
[350241811,1737731443193,-500.0,0.00018815,2]
[350241812,1737731443203,-500.0,0.00018815,2]
[350241813,1737731443212,-654.92,0.00018815,2]
[350241814,1737731443222,-151.0,0.00018815,2]
[350241815,1737731443231,-295.045328,0.00018815,2]
[350241816,1737731443242,-151.0,0.00018815,2]
[350241817,1737731443251,-295.045328,0.00018815,2]
[350241818,1737731443261,-279.487466,0.00018815,2]
[350241819,1737731443270,-279.487466,0.00018815,2]
[350241820,1737731443279,-500.0,0.00018815,2]
[350241821,1737731443289,-500.0,0.00018815,2]
[350241822,1737731443298,-843.48,0.00018815,2]
[350241823,1737731443308,-773.4,0.00018815,2]
[350241824,1737731443318,-500.0,0.00018815,2]
[350241825,1737731443328,-371.10801,0.00018815,2]
[350241826,1737731443337,-371.10801,0.00018815,2]
[350241827,1737731443347,-500.0,0.00018815,2]
[350241828,1737731443356,-500.0,0.00018815,2]
[350241829,1737731443366,-151.0,0.00018815,2]
[350241830,1737731443375,-500.0,0.00018815,2]
[350241831,1737731443384,-151.0,0.00018815,2]
[350241832,1737731443394,-151.0,0.00018815,2]
[350241833,1737731443403,-151.0,0.00018815,2]
[350241834,1737731443412,-500.0,0.00018815,2]
[350241835,1737731443422,-500.0,0.00018815,2]
[350241836,1737731443431,-1410.76,0.00018815,2]
[350241837,1737731443440,-500.0,0.00018815,2]
[350241838,1737731443450,-500.0,0.00018815,2]
[350241839,1737731443460,-500.0,0.00018815,2]
[350241840,1737731443470,-2885.36,0.00018815,2]
[350241841,1737731443479,-500.0,0.00018815,2]
[350241842,1737731443488,-175.057082,0.00018815,2]
[350241843,1737731443498,-500.0,0.00018815,2]
[350241844,1737731443507,-1670.96,0.00018815,2]
[350241845,1737731443516,-175.057082,0.00018815,2]
[350241846,1737731443526,-511.99439281,0.00018815,2]
[350241847,1737731443535,-528.06,0.00018815,2]
[350241848,1737731443545,-795.54,0.00018815,2]
[350241849,1737731443554,-500.0,0.00018815,2]
[350241850,1737731443563,-806.27945,0.00018815,2]
[350241851,1737731443573,-500.0,0.00018815,2]
[350241852,1737731443583,-500.0,0.00018815,2]
[350241853,1737731443592,-578.81,0.00018815,2]
[350241854,1737731443603,-500.0,0.00018815,2]
[350241855,1737731443612,-500.0,0.00018815,2]
[350241856,1737731443624,-895.76,0.00018815,2]
[350241857,1737731443633,-500.0,0.00018815,2]
[350241858,1737731443643,-500.0,0.00018815,2]
[350241859,1737731443654,-1598.38,0.00018815,2]
[350241860,1737731443663,-586.945815,0.00018815,2]
[350241861,1737731443673,-312.663823,0.00018815,2]
[350241862,1737731443683,-500.0,0.00018815,2]
[350241863,1737731443692,-527.26425344,0.00018815,2]
[350241864,1737731443702,-312.663823,0.00018815,2]
[350241865,1737731443711,-586.945815,0.00018815,2]
[350241866,1737731443721,-534.8,0.00018815,2]
[350241867,1737731443730,-1083.52,0.00018815,2]
[350241868,1737731443739,-500.0,0.00018815,2]
[350241869,1737731443749,-500.0,0.00018815,2]
[350241870,1737731443759,-644.456178,0.00018815,2]
[350241871,1737731443769,-1957.070718,0.00018815,2]
[350241872,1737731443778,-500.0,0.00018815,2]
[350241873,1737731443787,-151.0,0.00018815,2]
[350241874,1737731443799,-605.55,0.00018815,2]
[350241875,1737731443811,-1957.070718,0.00018815,2]
[350241876,1737731443822,-814.58,0.00018815,2]
[350241877,1737731443832,-500.0,0.00018815,2]
[350241878,1737731443843,-355.38227,0.00018815,2]
[350241879,1737731443852,-500.0,0.00018815,2]
[350241880,1737731443862,-627.41,0.00018815,2]
[350241881,1737731443871,-179.437714,0.00018815,2]
[350241882,1737731443880,-355.38227,0.00018815,2]
[350241883,1737731443890,-1352.93,0.00018815,2]
[350241884,1737731443899,-179.437714,0.00018815,2]
[350241887,1737731443908,-668.18,0.00018815,2]
[350241889,1737731443918,-649.19,0.00018815,2]
[350241892,1737731443927,-500.0,0.00018815,2]
[350241893,1737731443937,-500.0,0.00018815,2]
[350241895,1737731443946,-1898.92,0.00018815,2]
[350241897,1737731443956,-500.0,0.00018815,2]
[350241899,1737731443965,-255.848567,0.00018815,2]
[350241901,1737731443976,-2010.71,0.00018815,2]
[350241903,1737731443985,-255.848567,0.00018815,2]
[350241905,1737731443995,-806.11,0.00018815,2]
[350241907,1737731444004,-510.6,0.00018815,2]
[350241909,1737731444013,-500.0,0.00018815,2]
[350241911,1737731444023,-151.0,0.00018815,2]
[350241913,1737731444032,-525.5,0.00018815,2]
[350241915,1737731444041,-500.0,0.00018815,2]
[350241917,1737731444051,-1100.95,0.00018815,2]
[350241919,1737731444061,-500.0,0.00018815,2]
[350241921,1737731444070,-819.39,0.00018815,2]
[350241923,1737731444079,-957.18,0.00018815,2]
[350241925,1737731444089,-657.92,0.00018815,2]
[350241927,1737731444099,-2740.83,0.00018815,2]
[350241929,1737731444109,-1400.11,0.00018815,2]
[350241931,1737731444119,-826.09,0.00018815,2]
[350241933,1737731444128,-500.0,0.00018815,2]
[350241934,1737731444137,-665.07,0.00018815,2]
[350241936,1737731444147,-500.0,0.00018815,2]
[350241937,1737731444156,-786.31,0.00018815,2]
[350241938,1737731444165,-542.18,0.00018815,2]
[350241939,1737731444175,-881.88,0.00018815,2]
[350241940,1737731444184,-500.0,0.00018815,2]
[350241941,1737731444193,-1875.18,0.00018815,2]
[350241942,1737731444203,-746.07,0.00018815,2]
[350241943,1737731444212,-2310.7,0.00018815,2]
[350241944,1737731444222,-151.0,0.00018815,2]
[350241945,1737731444232,-500.0,0.00018815,2]
[350241946,1737731444241,-151.0,0.00018815,2]
[350241947,1737731444251,-934.84,0.00018815,2]
[350241948,1737731444260,-500.0,0.00018815,2]
[350241949,1737731444270,-500.0,0.00018815,2]
[350241950,1737731444279,-3687.69,0.00018815,2]
[350241951,1737731444289,-500.0,0.00018815,2]
[350241952,1737731444298,-2058.85,0.00018815,2]
[350241953,1737731444307,-151.0,0.00018815,2]
[350241954,1737731444317,-942.76,0.00018815,2]
[350241955,1737731444327,-151.122635,0.00018815,2]
[350241956,1737731444337,-151.0,0.00018815,2]
[350241957,1737731444347,-1298.84,0.00018815,2]
[350241958,1737731444357,-629.67,0.00018815,2]
[350241959,1737731444367,-1168.14,0.00018815,2]
[350241960,1737731444376,-151.122635,0.00018815,2]
[350241961,1737731444386,-3022.57,0.00018815,2]
[350241962,1737731444396,-151.702607,0.00018815,2]
[350241963,1737731444407,-727.97,0.00018815,2]
[350241964,1737731444416,-500.0,0.00018815,2]
[350241965,1737731444426,-500.0,0.00018815,2]
[350241966,1737731444436,-500.0,0.00018815,2]
[350241967,1737731444445,-1100.14,0.00018815,2]
[350241968,1737731444455,-791.12,0.00018815,2]
[350241969,1737731444465,-239.721551,0.00018815,2]
[350241970,1737731444474,-239.721551,0.00018815,2]
[350241971,1737731444483,-2561.7,0.00018815,2]
[350241972,1737731444492,-1009.075764,0.00018815,2]
[350241973,1737731444502,-514.512574,0.00018815,2]
[350241974,1737731444512,-151.0,0.00018815,2]
[350241975,1737731444521,-216.820245,0.00018815,2]
[350241976,1737731444531,-500.0,0.00018815,2]
[350241977,1737731444540,-1009.075764,0.00018815,2]
[350241978,1737731444550,-151.0,0.00018815,2]
[350241979,1737731444560,-216.820245,0.00018815,2]
[350241980,1737731444571,-1055.52,0.00018815,2]
[350241981,1737731444581,-514.512574,0.00018815,2]
[350241982,1737731444593,-500.0,0.00018815,2]
[350241983,1737731444603,-8356.42,0.00018815,2]
[350241984,1737731444612,-696.34,0.00018815,2]
[350241985,1737731444622,-539.85,0.00018815,2]
[350241986,1737731444631,-500.0,0.00018815,2]
[350241987,1737731444641,-520.73,0.00018815,2]
[350241988,1737731444651,-151.0,0.00018816,2]
[350241989,1737731444660,-151.0,0.00018816,2]
[350241990,1737731444670,-151.0,0.00018816,2]
[350241991,1737731444680,-239.837958,0.00018816,2]
[350241992,1737731444689,-202.155906,0.00018816,2]
[350241993,1737731444699,-151.0,0.00018816,2]
[350241994,1737731444710,-151.394012,0.00018816,2]
[350241995,1737731444720,-151.0,0.00018816,2]
[350241996,1737731444730,-151.0,0.00018816,2]
[350241997,1737731444740,-151.0,0.00018816,2]
[350241998,1737731444749,-151.0,0.00018816,2]
[350241999,1737731444759,-151.0,0.00018816,2]
[350242000,1737731444768,-151.0,0.00018816,2]
[350242001,1737731444778,-151.0,0.00018816,2]
[350242002,1737731444788,-500.0,0.00018816,2]
[350242003,1737731444799,-610.48997718,0.00018816,2]
[350242004,1737731444812,-500.0,0.00018816,2]
[350242006,1737731444822,-151.0,0.00018816,2]
[350242008,1737731444832,-500.0,0.00018816,2]
[350242009,1737731444843,-500.0,0.00018816,2]
[350242010,1737731444852,-500.0,0.00018816,2]
[350242011,1737731444862,-151.0,0.00018816,2]
[350242012,1737731444872,-500.0,0.00018816,2]
[350242013,1737731444882,-151.0,0.00018816,2]
[350242014,1737731444893,-500.0,0.00018816,2]
[350242015,1737731444902,-530.57,0.00018816,2]
[350242016,1737731444912,-500.0,0.00018816,2]
[350242017,1737731444922,-500.0,0.00018816,2]
[350242018,1737731444931,-469.35302124,0.00018816,2]
[350242019,1737731444941,-515.45,0.00018816,2]
[350242020,1737731444951,-500.0,0.00018816,2]
[350242021,1737731444960,-500.0,0.00018816,2]
[350242022,1737731444971,-500.0,0.00018816,2]
[350242023,1737731444980,-350.52355997,0.00018816,2]
[350242024,1737731444990,-151.0,0.00018816,2]
[350242025,1737731445000,-500.0,0.00018816,2]
[350242026,1737731445009,-1210.297235,0.00018816,2]
[350242027,1737731445019,-500.0,0.00018816,2]
[350242028,1737731445028,-500.0,0.00018816,2]
[350242029,1737731445038,-151.0,0.00018816,2]
[350242030,1737731445048,-289.981981,0.00018816,2]
[350242031,1737731445058,-289.981981,0.00018816,2]
[350242032,1737731445068,-500.0,0.00018816,2]
[350242033,1737731445078,-639.54030937,0.00018816,2]
[350242034,1737731445087,-500.0,0.00018816,2]
[350242035,1737731445097,-151.0,0.00018816,2]
[350242036,1737731445107,-7793.625528,0.00018816,2]
[350242037,1737731445116,-7793.625528,0.00018816,2]
[350242038,1737731445126,-183.194413,0.00018816,2]
[350242039,1737731445176,-183.194413,0.00018816,2]
[350242040,1737731445185,-151.0,0.00018816,2]
[350242041,1737731445196,-151.0,0.00018816,2]
[350242042,1737731445206,-279.487466,0.00018816,2]
[350242043,1737731445215,-279.487466,0.00018816,2]
[350242044,1737731445225,-371.10801,0.00018816,2]
[350242045,1737731445235,-371.10801,0.00018816,2]
[350242046,1737731445245,-89.43117652,0.00018816,2]
[350242047,1737731445481,-61.56882348,0.00018816,2]
[350242048,1737731445491,-151.0,0.00018816,2]
[350242049,1737731445500,-586.945815,0.00018816,2]
[350242050,1737731445510,-586.945815,0.00018816,2]
[350242051,1737731445519,-1957.070718,0.00018816,2]
[350242052,1737731445528,-1957.070718,0.00018816,2]
[350242053,1737731445537,-355.38227,0.00018816,2]
[350242054,1737731445547,-355.38227,0.00018816,2]
[350242055,1737731445556,-151.0,0.00018816,2]
[350242056,1737731445566,-151.0,0.00018816,2]
[350242057,1737731445577,-517.47,0.00018821,2]
[350242058,1737731445586,-598.97,0.00018821,2]
[350242059,1737731445595,-500.0,0.00018821,2]
[350242060,1737731445605,-500.0,0.00018821,2]
[350242061,1737731445614,-151.0,0.00018822,2]
[350242062,1737731445624,-151.0,0.00018822,2]
[350242063,1737731445632,-179.437714,0.00018822,2]
[350242064,1737731445641,-179.437714,0.00018822,2]
[350242065,1737731445651,-255.848567,0.00018822,2]
[350242066,1737731445660,-255.848567,0.00018822,2]
[350242067,1737731445670,-151.0,0.00018822,2]
[350242068,1737731445679,-151.0,0.00018822,2]
[350242069,1737731445688,-693.83527317,0.00018824,2]
[350242070,1737731445698,-500.0,0.00018834,2]
[350242071,1737731445707,-357.33999999,0.00018834,2]
[350242072,1737731445716,-585.13,0.00018834,2]
[350242073,1737731445726,-546.8,0.00018834,2]
[350242074,1737731445736,-500.0,0.00018834,2]
[350242075,1737731445746,-500.0,0.00018834,2]
[350242076,1737731445755,-500.0,0.00018834,2]
[350242077,1737731445765,-500.0,0.00018834,2]
[350242078,1737731445776,-500.0,0.00018834,2]
[350242079,1737731445785,-542.88,0.00018834,2]
[350242080,1737731445796,-500.0,0.00018834,2]
[350242081,1737731445811,-500.0,0.00018834,2]
[350242082,1737731445821,-572.19,0.00018834,2]
[350242083,1737731445831,-675.4,0.00018834,2]
[350242084,1737731445840,-500.0,0.00018834,2]
[350242085,1737731445851,-500.0,0.00018834,2]
[350242086,1737731445860,-500.0,0.00018834,2]
[350242087,1737731445870,-500.0,0.00018834,2]
[350242088,1737731445880,-500.0,0.00018834,2]
[350242089,1737731445889,-683.82,0.00018834,2]
[350242090,1737731445899,-706.36,0.00018834,2]
[350242091,1737731445908,-811.83,0.00018834,2]
[350242092,1737731445918,-500.0,0.00018834,2]
[350242093,1737731445927,-573.64,0.00018834,2]
[350242094,1737731445936,-500.0,0.00018834,2]
[350242095,1737731445946,-500.0,0.00018834,2]
[350242096,1737731445955,-878.91,0.00018834,2]
[350242097,1737731445965,-500.0,0.00018834,2]
[350242098,1737731445974,-546.81,0.00018834,2]
[350242099,1737731445983,-151.0,0.00018834,2]
[350242100,1737731445993,-511.24854493,0.00018834,2]
[350242101,1737731446003,-151.0,0.00018834,2]
[350242102,1737731446013,-500.0,0.00018834,2]
[350242103,1737731446023,-500.0,0.00018834,2]
[350242104,1737731446032,-500.0,0.00018834,2]
[350242105,1737731446042,-295.045328,0.00018834,2]
[350242106,1737731446051,-295.045328,0.00018834,2]
[350242108,1737731446061,-651.48,0.00018834,2]
[350242110,1737731446071,-572.69,0.00018834,2]
[350242112,1737731446080,-520.34,0.00018834,2]
[350242113,1737731446091,-698.22,0.00018834,2]
[350242115,1737731446101,-577.62,0.00018834,2]
[350242117,1737731446111,-500.0,0.00018834,2]
[350242118,1737731446121,-531.12,0.00018834,2]
[350242119,1737731446130,-500.0,0.00018834,2]
[350242120,1737731446140,-500.0,0.00018834,2]
[350242121,1737731446150,-500.0,0.00018834,2]
[350242122,1737731446160,-566.52,0.00018834,2]
[350242123,1737731446170,-500.0,0.00018834,2]
[350242124,1737731446180,-500.0,0.00018834,2]
[350242125,1737731446190,-500.0,0.00018834,2]
[350242126,1737731446200,-500.0,0.00018834,2]
[350242127,1737731446210,-500.0,0.00018834,2]
[350242128,1737731446220,-500.0,0.00018834,2]
[350242129,1737731446229,-502.65,0.00018834,2]
[350242130,1737731446239,-977.81,0.00018834,2]
[350242131,1737731446249,-175.057082,0.00018834,2]
[350242132,1737731446258,-500.0,0.00018834,2]
[350242133,1737731446268,-175.057082,0.00018834,2]
[350242134,1737731446278,-500.0,0.00018834,2]
[350242135,1737731446287,-500.0,0.00018834,2]
[350242136,1737731446297,-1297.52,0.00018834,2]
[350242137,1737731446307,-516.82,0.00018834,2]
[350242138,1737731446317,-312.663823,0.00018834,2]
[350242139,1737731446327,-639.93,0.00018834,2]
[350242140,1737731446336,-500.0,0.00018834,2]
[350242141,1737731446347,-312.663823,0.00018834,2]
[350242142,1737731446357,-948.34,0.00018834,2]
[350242143,1737731446367,-500.0,0.00018834,2]
[350242144,1737731446377,-1563.15,0.00018834,2]
[350242145,1737731446387,-537.7,0.00018834,2]
[350242146,1737731446396,-614.51,0.00018834,2]
[350242147,1737731446406,-500.0,0.00018834,2]
[350242148,1737731446416,-500.0,0.00018834,2]
[350242149,1737731446426,-3576.25,0.00018834,2]
[350242150,1737731446435,-151.0,0.00018834,2]
[350242151,1737731446445,-500.0,0.00018834,2]
[350242152,1737731446455,-1565.91,0.00018834,2]
[350242153,1737731446464,-500.0,0.00018834,2]
[350242154,1737731446474,-500.0,0.00018834,2]
[350242155,1737731446484,-2091.41,0.00018834,2]
[350242156,1737731446494,-500.0,0.00018834,2]
[350242157,1737731446503,-500.0,0.00018834,2]
[350242158,1737731446512,-1021.41,0.00018834,2]
[350242159,1737731446522,-500.0,0.00018834,2]
[350242160,1737731446531,-1290.64,0.00018834,2]
[350242161,1737731446541,-500.0,0.00018834,2]
[350242162,1737731446552,-151.0,0.00018834,2]
[350242163,1737731446562,-2037.46,0.00018834,2]
[350242164,1737731446573,-151.0,0.00018834,2]
[350242165,1737731446584,-500.0,0.00018834,2]
[350242166,1737731446594,-500.0,0.00018834,2]
[350242167,1737731446604,-827.68,0.00018834,2]
[350242168,1737731446614,-500.0,0.00018834,2]
[350242169,1737731446624,-151.122635,0.00018834,2]
[350242170,1737731446634,-500.0,0.00018834,2]
[350242171,1737731446644,-151.122635,0.00018834,2]
[350242172,1737731446654,-371.88157773,0.00018834,2]
[350242173,1737731446663,-464.03,0.00018834,2]
[350242174,1737731446673,-627.81,0.00018834,2]
[350242175,1737731446683,-500.0,0.00018834,2]
[350242176,1737731446692,-239.721551,0.00018834,2]
[350242177,1737731446702,-239.721551,0.00018834,2]
[350242178,1737731446712,-1009.075764,0.00018834,2]
[350242179,1737731446721,-514.512574,0.00018834,2]
[350242180,1737731446731,-216.820245,0.00018834,2]
[350242181,1737731446741,-1009.075764,0.00018834,2]
[350242182,1737731446751,-216.820245,0.00018834,2]
[350242184,1737731446760,-500.0,0.00018834,2]
[350242185,1737731446770,-500.0,0.00018834,2]
[350242187,1737731446780,-514.512574,0.00018834,2]
[350242188,1737731446790,-500.0,0.00018834,2]
[350242190,1737731446799,-500.0,0.00018835,2]
[350242192,1737731446813,-1955.81,0.00018835,2]
[350242194,1737731446824,-500.0,0.00018835,2]
[350242195,1737731446834,-500.0,0.00018835,2]
[350242197,1737731446843,-500.0,0.00018835,2]
[350242198,1737731446853,-160.774936,0.00018836,2]
[350242200,1737731446862,-160.774936,0.00018836,2]
[350242202,1737731446871,-160.774936,0.00018836,2]
[350242203,1737731446881,-160.774936,0.00018836,2]
[350242205,1737731446891,-151.0,0.00018836,2]
[350242206,1737731446900,-500.45358545,0.00018873,2]
[350242209,1737731446910,-9846.02429415,0.00018875,2]
[350242212,1737731446920,-152.4,0.00018879,2]
[350242215,1737731446930,-1598.38,0.00018879,2]
[350242217,1737731446939,-222.19640674,0.0001888,2]
[350242220,1737731446949,-39774.49217447,0.0001888,2]
[350242224,1737731446962,-418.49876,0.0001888,2]
[350242229,1737731446983,-151.0,0.00018815,2]
[350242231,1737731446992,-6090.37355,0.0001888,2]
[350242236,1737731447014,-92621.9079151,0.0001888,2]
[350242239,1737731447024,-158000.0,0.0001888,2]
[350242241,1737731447034,-160.774936,0.0001888,2]
[350242243,1737731447043,-160.774936,0.0001888,2]
[350242244,1737731447053,-151.0,0.0001888,2]
[350242246,1737731447063,-151.0,0.0001888,2]
[350242248,1737731447074,-151.595789,0.0001888,2]
[350242250,1737731447084,-151.0,0.0001888,2]
[350242251,1737731447094,-151.0,0.0001888,2]
[350242253,1737731447104,-228.319633,0.0001888,2]
[350242255,1737731447114,-151.0,0.0001888,2]
[350242257,1737731447123,-151.0,0.0001888,2]
[350242258,1737731447133,-151.0,0.0001888,2]
[350242260,1737731447143,-151.0,0.0001888,2]
[350242262,1737731447152,-151.0,0.0001888,2]
[350242264,1737731447161,-151.0,0.0001888,2]
[350242265,1737731447171,-151.0,0.0001888,2]
[350242267,1737731447181,-269.212349,0.0001888,2]
[350242269,1737731447193,-151.0,0.0001888,2]
[350242271,1737731447202,-1210.297235,0.0001888,2]
[350242273,1737731447212,-151.0,0.0001888,2]
[350242274,1737731447221,-289.981981,0.0001888,2]
[350242276,1737731447230,-289.981981,0.0001888,2]
[350242278,1737731447240,-151.0,0.0001888,2]
[350242279,1737731447249,-7793.625528,0.0001888,2]
[350242281,1737731447259,-7793.625528,0.0001888,2]
[350242283,1737731447269,-183.194413,0.0001888,2]
[350242285,1737731447279,-183.194413,0.0001888,2]
[350242287,1737731447288,-151.0,0.0001888,2]
[350242288,1737731447298,-151.0,0.0001888,2]
[350242290,1737731447307,-151.0,0.0001888,2]
[350242292,1737731447317,-151.0,0.0001888,2]
[350242293,1737731447327,-151.0,0.0001888,2]
[350242295,1737731447337,-295.045328,0.0001888,2]
[350242297,1737731447347,-295.045328,0.0001888,2]
[350242299,1737731447357,-151.0,0.0001888,2]
[350242300,1737731447367,-295.045328,0.0001888,2]
[350242302,1737731447376,-295.045328,0.0001888,2]
[350242304,1737731447386,-279.487466,0.0001888,2]
[350242306,1737731447396,-279.487466,0.0001888,2]
[350242308,1737731447405,-371.10801,0.0001888,2]
[350242309,1737731447415,-371.10801,0.0001888,2]
[350242311,1737731447424,-151.0,0.0001888,2]
[350242313,1737731447434,-151.0,0.0001888,2]
[350242315,1737731447443,-151.0,0.0001888,2]
[350242317,1737731447453,-151.0,0.0001888,2]
[350242318,1737731447463,-175.057082,0.0001888,2]
[350242320,1737731447474,-175.057082,0.0001888,2]
[350242322,1737731447483,-175.057082,0.0001888,2]
[350242324,1737731447493,-175.057082,0.0001888,2]
[350242325,1737731447503,-586.945815,0.0001888,2]
[350242327,1737731447512,-312.663823,0.0001888,2]
[350242329,1737731447522,-312.663823,0.0001888,2]
[350242331,1737731447531,-312.663823,0.0001888,2]
[350242333,1737731447541,-586.945815,0.0001888,2]
[350242334,1737731447550,-312.663823,0.0001888,2]
[350242336,1737731447560,-151.0,0.0001888,2]
[350242338,1737731447570,-1957.070718,0.0001888,2]
[350242340,1737731447580,-151.0,0.0001888,2]
[350242341,1737731447589,-1957.070718,0.0001888,2]
[350242343,1737731447599,-355.38227,0.0001888,2]
[350242345,1737731447608,-355.38227,0.0001888,2]
[350242347,1737731447618,-157.4598729,0.0001888,2]
[350242349,1737731447631,-21.9778411,0.0001888,2]
[350242351,1737731447641,-355.38227,0.0001888,2]
[350242353,1737731447651,-355.38227,0.0001888,2]
[350242356,1737731447661,-179.437714,0.0001888,2]
[350242357,1737731447671,-255.848567,0.0001888,2]
[350242358,1737731447680,-22.5813379,0.0001888,2]
[350242359,1737731447692,-233.2672291,0.0001888,2]
[350242360,1737731447701,-151.0,0.0001888,2]
[350242361,1737731447711,-144.5059017,0.0001888,2]
[350242362,1737731447723,-6.4940983,0.0001888,2]
[350242363,1737731447733,-151.0,0.0001888,2]
[350242364,1737731447743,-151.0,0.0001888,2]
[350242365,1737731447752,-111.81348169,0.0001888,2]
[350242366,1737731447764,-39.30915331,0.0001888,2]
[350242367,1737731447773,-151.0,0.0001888,2]
[350242368,1737731447783,-76.57084669,0.0001888,2]
[350242369,1737731447807,-151.0,0.00018834,2]
[350242384,1737731447946,-74.55178831,0.0001888,2]
[350242386,1737731447956,-239.721551,0.0001888,2]
[350242388,1737731447965,-239.721551,0.0001888,2]
[350242390,1737731447975,-1009.075764,0.0001888,2]
[350242392,1737731447985,-397.52934569,0.0001888,2]
[350242426,1737731448507,-222.08,0.00017833,2]
[350242427,1737731448516,-500.0,0.00018779,2]
[350242428,1737731448527,-116.98322831,0.0001888,2]
[350242429,1737731448536,-151.0,0.0001888,2]
[350242430,1737731448547,-216.820245,0.0001888,2]
[350242431,1737731448568,-1009.075764,0.0001888,2]
[350242432,1737731448578,-151.0,0.0001888,2]
[350242433,1737731448589,-216.820245,0.0001888,2]
[350242434,1737731448599,-514.512574,0.0001888,2]
[350242435,1737731448608,-151.0,0.0001888,2]
[350242436,1737731448617,-151.0,0.00018882,2]
[350242437,1737731448627,-151.0,0.00018882,2]
[350242438,1737731448637,-151.122635,0.00018882,2]
[350242439,1737731448647,-151.122635,0.00018882,2]
[350242440,1737731448657,-239.721551,0.00018882,2]
[350242441,1737731448667,-239.721551,0.00018882,2]
[350242442,1737731448676,-1009.075764,0.00018882,2]
[350242443,1737731448686,-514.512574,0.00018882,2]
[350242444,1737731448695,-216.820245,0.00018882,2]
[350242445,1737731448705,-1009.075764,0.00018882,2]
[350242446,1737731448715,-216.820245,0.00018882,2]
[350242447,1737731448724,-514.512574,0.00018882,2]
[350242448,1737731448734,-151.0,0.00018882,2]